[Event "Live Chess"]
[Site "Chess.com"]
[Date "2023.05.20"]
[Round "-"]
[White "daveeeeR"]
[Black "risinghelios"]
[Result "0-1"]
[WhiteElo "1255"]
[BlackElo "1954"]
[TimeControl "300"]
[EndTime "9:26:58 PDT"]
[Termination "risinghelios won by resignation"]

1. d4 {[%clk 0:04:58.8]} 1... Nf6 {[%clk 0:04:56.9]} 2. Bf4 {[%clk 0:04:58]}
2... d5 {[%clk 0:04:56.2]} 3. Nf3 {[%clk 0:04:57.1]} 3... Bg4 {[%clk 0:04:54.6]}
4. Nbd2 {[%clk 0:04:55]} 4... e6 {[%clk 0:04:53.5]} 5. e3 {[%clk 0:04:54]} 5...
Bd6 {[%clk 0:04:52.5]} 6. Bg3 {[%clk 0:04:52.6]} 6... Bxg3 {[%clk 0:04:51.3]} 7.
hxg3 {[%clk 0:04:51.6]} 7... Nbd7 {[%clk 0:04:50.6]} 8. c3 {[%clk 0:04:48.3]}
8... c6 {[%clk 0:04:50.1]} 9. Qb3 {[%clk 0:04:46.5]} 9... O-O {[%clk 0:04:45]}
10. Be2 {[%clk 0:04:35.6]} 10... Nb6 {[%clk 0:04:42.2]} 11. Qc2 {[%clk
0:04:31.1]} 11... h6 {[%clk 0:04:40.3]} 12. Ne5 {[%clk 0:04:27.1]} 12... Bxe2
{[%clk 0:04:37.3]} 13. Kxe2 {[%clk 0:04:26.5]} 13... Nfd7 {[%clk 0:04:34.6]} 14.
Ng4 {[%clk 0:04:23.7]} 14... Nf6 {[%clk 0:04:23.6]} 15. Nxh6+ {[%clk 0:04:03.1]}
15... gxh6 {[%clk 0:04:21.1]} 16. Rxh6 {[%clk 0:04:01.7]} 16... Kg7 {[%clk
0:04:11]} 17. Rah1 {[%clk 0:03:59.6]} 17... Nc4 {[%clk 0:03:30.7]} 18. e4 {[%clk
0:03:49.5]} 18... Nxd2 {[%clk 0:03:26.5]} 19. Kxd2 {[%clk 0:03:33.2]} 19...
Nxe4+ {[%clk 0:03:25.2]} 20. Kc1 {[%clk 0:03:29.8]} 20... Qg5+ {[%clk
0:03:24.1]} 21. Kb1 {[%clk 0:03:27.8]} 21... Qxh6 {[%clk 0:03:22.3]} 22. Rxh6
{[%clk 0:03:25.7]} 22... Kxh6 {[%clk 0:03:22.2]} 23. f3 {[%clk 0:03:24.6]} 23...
Nf6 {[%clk 0:03:19.4]} 24. Qd2+ {[%clk 0:03:22]} 24... Kg6 {[%clk 0:03:17.4]}
25. Qf4 {[%clk 0:03:17]} 25... Rh8 {[%clk 0:03:14.7]} 26. a3 {[%clk 0:03:14.6]}
26... Nh5 {[%clk 0:03:10.5]} 27. Qg4+ {[%clk 0:03:07.4]} 27... Kf6 {[%clk
0:03:09.2]} 28. f4 {[%clk 0:03:03.7]} 28... Ke7 {[%clk 0:03:07.4]} 29. f5 {[%clk
0:03:01.9]} 29... Nf6 {[%clk 0:03:06.6]} 30. Qg5 {[%clk 0:02:57.6]} 30... Rag8
{[%clk 0:03:03.3]} 31. Qe3 {[%clk 0:02:55.9]} 31... Rg4 {[%clk 0:02:59.8]} 32.
fxe6 {[%clk 0:02:51.7]} 32... fxe6 {[%clk 0:02:59.7]} 33. Qf3 {[%clk 0:02:44.9]}
33... Rhg8 {[%clk 0:02:58.3]} 34. Qd1 {[%clk 0:02:38.7]} 34... Rxg3 {[%clk
0:02:56.9]} 35. Qa4 {[%clk 0:02:37.7]} 35... a6 {[%clk 0:02:55.2]} 36. Qb3
{[%clk 0:02:35.6]} 36... Rxg2 {[%clk 0:02:53.5]} 37. Qxb7+ {[%clk 0:02:32.4]}
37... Nd7 {[%clk 0:02:53.3]} 38. Qxc6 {[%clk 0:02:30.4]} 38... Rf2 {[%clk
0:02:49.7]} 39. Qb7 {[%clk 0:02:17.4]} 39... Rg1+ {[%clk 0:02:46]} 40. Ka2
{[%clk 0:02:16.5]} 40... Rgg2 {[%clk 0:02:45.7]} 41. Qb4+ {[%clk 0:02:11.1]}
41... Kd8 {[%clk 0:02:43.5]} 42. a4 {[%clk 0:01:59.3]} 42... Rxb2+ {[%clk
0:02:40.9]} 43. Qxb2 {[%clk 0:01:58]} 43... Rxb2+ {[%clk 0:02:40.8]} 44. Kxb2
{[%clk 0:01:57.5]} 44... Kc7 {[%clk 0:02:40.7]} 45. Kb3 {[%clk 0:01:56.8]} 45...
Kb6 {[%clk 0:02:40.6]} 46. Kb4 {[%clk 0:01:56.1]} 46... e5 {[%clk 0:02:39.1]}
47. a5+ {[%clk 0:01:53]} 47... Kc6 {[%clk 0:02:37.8]} 48. dxe5 {[%clk
0:01:51.3]} 48... Nxe5 {[%clk 0:02:37.7]} 49. Ka4 {[%clk 0:01:48.3]} 49... Kc5
{[%clk 0:02:36.5]} 50. c4 {[%clk 0:01:43.4]} 50... Nxc4 {[%clk 0:02:35.9]} 0-1

[Event "Live Chess"]
[Site "Chess.com"]
[Date "2023.05.20"]
[Round "-"]
[White "Chesscoach_Golichenko"]
[Black "Hacker_2009"]
[Result "1-0"]
[WhiteElo "2644"]
[BlackElo "1928"]
[TimeControl "300"]
[EndTime "9:27:03 PDT"]
[Termination "Chesscoach_Golichenko won by resignation"]

1. d4 {[%clk 0:04:57.1]} 1... Nf6 {[%clk 0:04:56.6]} 2. c4 {[%clk 0:04:55.3]}
2... e6 {[%clk 0:04:33.4]} 3. Nc3 {[%clk 0:04:53.6]} 3... d5 {[%clk 0:04:32.7]}
4. Nf3 {[%clk 0:04:52.3]} 4... Be7 {[%clk 0:04:31.6]} 5. Bf4 {[%clk 0:04:50.3]}
5... O-O {[%clk 0:04:28.9]} 6. e3 {[%clk 0:04:18.2]} 6... b6 {[%clk 0:04:27.1]}
7. cxd5 {[%clk 0:04:15.4]} 7... Nxd5 {[%clk 0:04:22.3]} 8. Nxd5 {[%clk 0:04:14]}
8... Qxd5 {[%clk 0:04:19.2]} 9. a3 {[%clk 0:04:09.7]} 9... Bb7 {[%clk
0:04:15.8]} 10. Bd3 {[%clk 0:04:06.8]} 10... c5 {[%clk 0:04:11.6]} 11. dxc5
{[%clk 0:03:55.5]} 11... Bxc5 {[%clk 0:04:07.3]} 12. O-O {[%clk 0:03:38.5]}
12... Qh5 {[%clk 0:03:58.5]} 13. Ne5 {[%clk 0:03:32.7]} 13... Nc6 {[%clk
0:03:52.9]} 14. Qxh5 {[%clk 0:03:30.6]} 1-0

[Event "Live Chess"]
[Site "Chess.com"]
[Date "2023.05.20"]
[Round "-"]
[White "OBrightwell100"]
[Black "aliciabutteriss"]
[Result "1-0"]
[WhiteElo "1330"]
[BlackElo "512"]
[TimeControl "300"]
[EndTime "9:27:07 PDT"]
[Termination "OBrightwell100 won by resignation"]

1. e4 {[%clk 0:04:57.5]} 1... c6 {[%clk 0:04:59.1]} 2. e5 {[%clk 0:04:56.5]}
2... d5 {[%clk 0:04:49.5]} 3. d4 {[%clk 0:04:55.8]} 3... e6 {[%clk 0:04:43.6]}
4. Nc3 {[%clk 0:04:45.6]} 4... c5 {[%clk 0:04:38.7]} 5. dxc5 {[%clk 0:04:43.3]}
5... Bxc5 {[%clk 0:04:35.9]} 6. Na4 {[%clk 0:04:39.4]} 6... Qa5+ {[%clk
0:04:16.7]} 7. Nc3 {[%clk 0:04:38.1]} 7... Bd7 {[%clk 0:04:06.6]} 8. a3 {[%clk
0:04:36.3]} 8... Bxf2+ {[%clk 0:03:47.8]} 9. Kxf2 {[%clk 0:04:29.2]} 9... Qb6+
{[%clk 0:03:44.1]} 10. Ke1 {[%clk 0:04:23.5]} 10... f6 {[%clk 0:03:34]} 11. Nf3
{[%clk 0:04:22.1]} 11... Ne7 {[%clk 0:03:27]} 12. exf6 {[%clk 0:04:20.5]} 12...
gxf6 {[%clk 0:03:24.1]} 13. Nh4 {[%clk 0:04:09.7]} 13... Rg8 {[%clk 0:03:20.4]}
14. Qh5+ {[%clk 0:04:07.5]} 14... Ng6 {[%clk 0:03:12.2]} 15. Nxg6 {[%clk
0:04:05.4]} 15... hxg6 {[%clk 0:03:09.6]} 16. Qh7 {[%clk 0:04:03.7]} 16... Kf8
{[%clk 0:02:57]} 17. Bh6+ {[%clk 0:03:59.5]} 17... Rg7 {[%clk 0:02:53.5]} 18.
Qxg7+ {[%clk 0:03:57.5]} 18... Ke8 {[%clk 0:02:52]} 19. Qxg6+ {[%clk 0:03:52.4]}
19... Kd8 {[%clk 0:02:36.9]} 20. Qxf6+ {[%clk 0:03:51.2]} 20... Kc7 {[%clk
0:02:36]} 21. Bf4+ {[%clk 0:03:48.7]} 21... Kc8 {[%clk 0:02:33.2]} 22. Qf8+
{[%clk 0:03:43.9]} 1-0

[Event "Live Chess"]
[Site "Chess.com"]
[Date "2023.05.20"]
[Round "-"]
[White "ZackirtyChess"]
[Black "killershark69420"]
[Result "1-0"]
[WhiteElo "1147"]
[BlackElo "296"]
[TimeControl "300"]
[EndTime "9:27:10 PDT"]
[Termination "ZackirtyChess won by resignation"]

1. e4 {[%clk 0:04:56.8]} 1... e5 {[%clk 0:04:57.9]} 2. Nf3 {[%clk 0:04:53.5]}
2... Nf6 {[%clk 0:04:55.2]} 3. Nxe5 {[%clk 0:04:49.7]} 3... Nxe4 {[%clk
0:04:50.6]} 4. Qe2 {[%clk 0:04:48.1]} 4... Bd6 {[%clk 0:04:22.3]} 5. Qxe4 {[%clk
0:04:42.1]} 5... Bxe5 {[%clk 0:04:16.9]} 6. Qxe5+ {[%clk 0:04:39.5]} 6... Qe7
{[%clk 0:04:15.9]} 7. Qxe7+ {[%clk 0:04:38.5]} 7... Kxe7 {[%clk 0:04:14.6]} 8.
Nc3 {[%clk 0:04:37.6]} 8... Nc6 {[%clk 0:04:12.3]} 9. Bc4 {[%clk 0:04:34.3]}
9... Ne5 {[%clk 0:04:07.2]} 10. Bb3 {[%clk 0:04:29]} 10... b6 {[%clk 0:03:50.4]}
11. O-O {[%clk 0:04:25.6]} 11... Bb7 {[%clk 0:03:47.6]} 12. Re1 {[%clk
0:04:23.2]} 12... d6 {[%clk 0:03:36]} 13. d4 {[%clk 0:04:21.4]} 13... f6 {[%clk
0:03:30]} 14. dxe5 {[%clk 0:04:19.9]} 14... dxe5 {[%clk 0:03:28.8]} 15. Bd5
{[%clk 0:04:16.4]} 15... Bxd5 {[%clk 0:03:27.2]} 16. Nxd5+ {[%clk 0:04:16.3]}
16... Ke6 {[%clk 0:03:25.8]} 17. Nxc7+ {[%clk 0:04:13.5]} 17... Kd7 {[%clk
0:03:21.8]} 18. Nxa8 {[%clk 0:04:12.5]} 1-0

[Event "Live Chess"]
[Site "Chess.com"]
[Date "2023.05.20"]
[Round "-"]
[White "OSmith06"]
[Black "Bob2pen"]
[Result "0-1"]
[WhiteElo "1738"]
[BlackElo "1814"]
[TimeControl "300"]
[EndTime "9:27:11 PDT"]
[Termination "Bob2pen won by resignation"]

1. e4 {[%clk 0:04:58.9]} 1... e6 {[%clk 0:04:58.4]} 2. d4 {[%clk 0:04:57]} 2...
d5 {[%clk 0:04:57.4]} 3. Nd2 {[%clk 0:04:54.2]} 3... Nf6 {[%clk 0:04:56]} 4. e5
{[%clk 0:04:53.1]} 4... Nfd7 {[%clk 0:04:54.8]} 5. c3 {[%clk 0:04:52.1]} 5... c5
{[%clk 0:04:53.8]} 6. Bd3 {[%clk 0:04:51.3]} 6... Nc6 {[%clk 0:04:52.5]} 7. Ne2
{[%clk 0:04:47.1]} 7... cxd4 {[%clk 0:04:51]} 8. cxd4 {[%clk 0:04:46]} 8... f6
{[%clk 0:04:50.1]} 9. exf6 {[%clk 0:04:44.2]} 9... Nxf6 {[%clk 0:04:48.8]} 10.
O-O {[%clk 0:04:39.6]} 10... Bd6 {[%clk 0:04:47.5]} 11. Nf3 {[%clk 0:04:37.3]}
11... O-O {[%clk 0:04:46.3]} 12. Bf4 {[%clk 0:04:31.5]} 12... Bxf4 {[%clk
0:04:44.8]} 13. Nxf4 {[%clk 0:04:31.4]} 13... Ne4 {[%clk 0:04:43.7]} 14. Ne2
{[%clk 0:04:16.6]} 14... Rxf3 {[%clk 0:04:41.5]} 15. gxf3 {[%clk 0:04:15.1]}
15... Ng5 {[%clk 0:04:40.5]} 16. Ng3 {[%clk 0:04:11.9]} 16... Nxd4 {[%clk
0:04:21.3]} 17. f4 {[%clk 0:03:59.2]} 17... Ngf3+ {[%clk 0:04:18.7]} 18. Kh1
{[%clk 0:03:54.6]} 18... Qh4 {[%clk 0:04:14.3]} 19. Bxh7+ {[%clk 0:03:10.6]}
19... Kh8 {[%clk 0:04:04.8]} 0-1

[Event "Live Chess"]
[Site "Chess.com"]
[Date "2023.05.20"]
[Round "-"]
[White "NatashaRegan"]
[Black "xx_blindpuffin_xx"]
[Result "1/2-1/2"]
[WhiteElo "1876"]
[BlackElo "2187"]
[TimeControl "300"]
[EndTime "9:27:13 PDT"]
[Termination "Game drawn by agreement"]

1. e4 {[%clk 0:04:54.6]} 1... e6 {[%clk 0:04:56.5]} 2. c4 {[%clk 0:04:49.5]}
2... d5 {[%clk 0:04:51.4]} 3. cxd5 {[%clk 0:04:45.2]} 3... exd5 {[%clk
0:04:46.3]} 4. e5 {[%clk 0:04:42.3]} 4... d4 {[%clk 0:04:40.3]} 5. Bc4 {[%clk
0:04:38.7]} 5... Nc6 {[%clk 0:04:29.3]} 6. f4 {[%clk 0:04:24.7]} 6... Nh6 {[%clk
0:04:10.2]} 7. Nf3 {[%clk 0:04:21.9]} 7... Bc5 {[%clk 0:04:05.7]} 8. d3 {[%clk
0:04:19.6]} 8... O-O {[%clk 0:04:03.1]} 9. O-O {[%clk 0:04:16.4]} 9... a6 {[%clk
0:04:00.7]} 10. Nbd2 {[%clk 0:04:11.2]} 10... Kh8 {[%clk 0:03:52.3]} 11. Ne4
{[%clk 0:04:09]} 11... Ba7 {[%clk 0:03:51.9]} 12. Neg5 {[%clk 0:03:56.5]} 12...
Na5 {[%clk 0:03:38.4]} 13. Bd2 {[%clk 0:03:47.9]} 13... Nxc4 {[%clk 0:03:37.1]}
14. dxc4 {[%clk 0:03:46.8]} 14... Bf5 {[%clk 0:03:11.5]} 15. Kh1 {[%clk
0:03:44.7]} 15... Bd3 {[%clk 0:03:09.7]} 16. Re1 {[%clk 0:03:38.8]} 16... Bxc4
{[%clk 0:03:07.9]} 17. Bb4 {[%clk 0:03:34.6]} 17... Re8 {[%clk 0:02:56.1]} 18.
Qc2 {[%clk 0:03:31.5]} 18... d3 {[%clk 0:02:42.5]} 19. Qxc4 {[%clk 0:03:29.9]}
19... b5 {[%clk 0:02:30.9]} 20. Qe4 {[%clk 0:03:26.4]} 20... c5 {[%clk 0:02:23]}
21. Qg6 {[%clk 0:03:24.4]} 1/2-1/2

[Event "Live Chess"]
[Site "Chess.com"]
[Date "2023.05.20"]
[Round "-"]
[White "HoarseyHorsey"]
[Black "SirEntrails"]
[Result "1-0"]
[WhiteElo "1387"]
[BlackElo "504"]
[TimeControl "300"]
[EndTime "9:27:20 PDT"]
[Termination "HoarseyHorsey won by checkmate"]

1. d4 {[%clk 0:04:59.5]} 1... Nf6 {[%clk 0:04:51.7]} 2. c4 {[%clk 0:04:57.9]}
2... Nc6 {[%clk 0:04:47.6]} 3. Nf3 {[%clk 0:04:53.5]} 3... e5 {[%clk 0:04:46.4]}
4. dxe5 {[%clk 0:04:50.7]} 4... Ne4 {[%clk 0:04:38.4]} 5. Nbd2 {[%clk
0:04:41.8]} 5... Bc5 {[%clk 0:04:37.5]} 6. Nxe4 {[%clk 0:04:39.7]} 6... O-O
{[%clk 0:04:33.3]} 7. Nxc5 {[%clk 0:04:38.3]} 7... d6 {[%clk 0:04:22.5]} 8. exd6
{[%clk 0:04:37]} 8... cxd6 {[%clk 0:04:21.2]} 9. Nb3 {[%clk 0:04:28.1]} 9... Re8
{[%clk 0:04:15.8]} 10. Bf4 {[%clk 0:04:22]} 10... Bg4 {[%clk 0:04:07.9]} 11. e3
{[%clk 0:04:15.8]} 11... Bxf3 {[%clk 0:04:06.6]} 12. Qxf3 {[%clk 0:04:14.3]}
12... a6 {[%clk 0:04:00.7]} 13. Be2 {[%clk 0:04:12]} 13... Ne5 {[%clk
0:03:56.7]} 14. Bxe5 {[%clk 0:04:10.4]} 14... dxe5 {[%clk 0:03:55.5]} 15. O-O
{[%clk 0:04:08.2]} 15... b5 {[%clk 0:03:53.3]} 16. cxb5 {[%clk 0:04:05.8]} 16...
axb5 {[%clk 0:03:52.2]} 17. Bxb5 {[%clk 0:04:03.5]} 17... Re6 {[%clk 0:03:49.7]}
18. Bc4 {[%clk 0:03:59.3]} 18... Rf6 {[%clk 0:03:43.1]} 19. Qe4 {[%clk
0:03:57.3]} 19... Rg6 {[%clk 0:03:38]} 20. Rad1 {[%clk 0:03:53.6]} 20... Qg5
{[%clk 0:03:33.4]} 21. Rd5 {[%clk 0:03:37]} 21... f6 {[%clk 0:03:27.9]} 22. Rd8#
{[%clk 0:03:31.3]} 1-0

[Event "Live Chess"]
[Site "Chess.com"]
[Date "2023.05.20"]
[Round "-"]
[White "KeithArkell"]
[Black "Ayush_prahlad_Gupta"]
[Result "1-0"]
[WhiteElo "2609"]
[BlackElo "1800"]
[TimeControl "300"]
[EndTime "9:27:23 PDT"]
[Termination "KeithArkell won by checkmate"]

1. d4 {[%clk 0:04:57.7]} 1... d5 {[%clk 0:04:58.8]} 2. Nf3 {[%clk 0:04:56.6]}
2... Nf6 {[%clk 0:04:57.2]} 3. c4 {[%clk 0:04:56.2]} 3... dxc4 {[%clk
0:04:55.8]} 4. e3 {[%clk 0:04:54.9]} 4... Bf5 {[%clk 0:04:51.5]} 5. Bxc4 {[%clk
0:04:53.1]} 5... e6 {[%clk 0:04:49.3]} 6. Nc3 {[%clk 0:04:51.3]} 6... Nbd7
{[%clk 0:04:46.5]} 7. O-O {[%clk 0:04:48.2]} 7... Nb6 {[%clk 0:04:45.4]} 8. Bd3
{[%clk 0:04:46]} 8... Bg4 {[%clk 0:04:44.2]} 9. h3 {[%clk 0:04:44.4]} 9... Bxh3
{[%clk 0:04:41.5]} 10. gxh3 {[%clk 0:04:42.9]} 10... Qd7 {[%clk 0:04:09.6]} 11.
Ne5 {[%clk 0:04:40.8]} 11... Qd6 {[%clk 0:04:04.2]} 12. Nb5 {[%clk 0:04:39.2]}
12... Qe7 {[%clk 0:04:01.8]} 13. b3 {[%clk 0:04:36.7]} 13... c6 {[%clk
0:03:58.1]} 14. Ba3 {[%clk 0:04:35.3]} 14... Qd8 {[%clk 0:03:56.7]} 15. Bxf8
{[%clk 0:04:33.5]} 15... Kxf8 {[%clk 0:03:51.8]} 16. Nc3 {[%clk 0:04:31.5]}
16... Nbd7 {[%clk 0:03:31.8]} 17. Nxd7+ {[%clk 0:04:29.8]} 17... Qxd7 {[%clk
0:03:31.7]} 18. Ne4 {[%clk 0:04:28.1]} 18... e5 {[%clk 0:03:27.1]} 19. Qf3
{[%clk 0:04:15.8]} 19... exd4 {[%clk 0:03:21.6]} 20. Nxf6 {[%clk 0:04:12.9]}
20... gxf6 {[%clk 0:03:19.7]} 21. Bf5 {[%clk 0:04:10.3]} 21... Qd6 {[%clk
0:03:13.5]} 22. Rad1 {[%clk 0:04:06.3]} 22... c5 {[%clk 0:03:05.7]} 23. exd4
{[%clk 0:04:03.5]} 23... cxd4 {[%clk 0:03:04.1]} 24. Rd3 {[%clk 0:03:59.9]}
24... Rg8+ {[%clk 0:02:55.1]} 25. Kh1 {[%clk 0:03:58.5]} 25... Rg5 {[%clk
0:02:47.5]} 26. Rfd1 {[%clk 0:03:56.6]} 26... Qe5 {[%clk 0:02:44.4]} 27. Be4
{[%clk 0:03:48.7]} 27... f5 {[%clk 0:02:34.6]} 28. Bxb7 {[%clk 0:03:46.8]} 28...
Rd8 {[%clk 0:02:27.8]} 29. b4 {[%clk 0:03:43]} 29... Rd6 {[%clk 0:02:19.8]} 30.
R3d2 {[%clk 0:03:14.4]} 30... Rh6 {[%clk 0:02:09.7]} 31. Rxd4 {[%clk 0:02:58.7]}
31... Rgh5 {[%clk 0:01:46.2]} 32. h4 {[%clk 0:02:46.7]} 32... Rxh4+ {[%clk
0:01:40.4]} 33. Rxh4 {[%clk 0:02:45.2]} 33... Rxh4+ {[%clk 0:01:40.3]} 34. Kg2
{[%clk 0:02:40.6]} 34... Qh2+ {[%clk 0:01:14.8]} 35. Kf1 {[%clk 0:02:38.6]}
35... Rh3 {[%clk 0:00:46.6]} 36. Qxf5 {[%clk 0:02:27.4]} 36... Qc7 {[%clk
0:00:30.1]} 37. Qxh3 {[%clk 0:02:19.3]} 37... Qxb7 {[%clk 0:00:28]} 38. Qh6+
{[%clk 0:02:16.6]} 38... Ke7 {[%clk 0:00:25.2]} 39. Qd6+ {[%clk 0:02:15.2]}
39... Ke8 {[%clk 0:00:23.7]} 40. Qd8# {[%clk 0:02:15.1]} 1-0

[Event "Live Chess"]
[Site "Chess.com"]
[Date "2023.05.20"]
[Round "-"]
[White "MartinWalker4"]
[Black "Assassin696969"]
[Result "0-1"]
[WhiteElo "2087"]
[BlackElo "2119"]
[TimeControl "300"]
[EndTime "9:27:24 PDT"]
[Termination "Assassin696969 won on time"]

1. e4 {[%clk 0:04:56.6]} 1... c6 {[%clk 0:04:59.3]} 2. d4 {[%clk 0:04:54.4]}
2... d5 {[%clk 0:04:58.7]} 3. exd5 {[%clk 0:04:53.3]} 3... cxd5 {[%clk
0:04:58.6]} 4. c4 {[%clk 0:04:52]} 4... Nf6 {[%clk 0:04:57.3]} 5. Nc3 {[%clk
0:04:50.7]} 5... Nc6 {[%clk 0:04:55.7]} 6. Nf3 {[%clk 0:04:48.1]} 6... Bg4
{[%clk 0:04:54.2]} 7. cxd5 {[%clk 0:04:46.7]} 7... Nxd5 {[%clk 0:04:51.7]} 8.
Qb3 {[%clk 0:04:45.6]} 8... Bxf3 {[%clk 0:04:49.9]} 9. gxf3 {[%clk 0:04:43.4]}
9... e6 {[%clk 0:04:48.7]} 10. Qxb7 {[%clk 0:04:41.5]} 10... Nxd4 {[%clk
0:04:46.5]} 11. Bb5+ {[%clk 0:04:40.2]} 11... Nxb5 {[%clk 0:04:45.6]} 12. Qc6+
{[%clk 0:04:39.3]} 12... Ke7 {[%clk 0:04:44.1]} 13. Qxb5 {[%clk 0:04:37.4]}
13... Nxc3 {[%clk 0:04:39.4]} 14. bxc3 {[%clk 0:04:34.9]} 14... Qd7 {[%clk
0:04:37]} 15. Ba3+ {[%clk 0:04:21.4]} 15... Ke8 {[%clk 0:04:32.5]} 16. Qxd7+
{[%clk 0:04:16]} 16... Kxd7 {[%clk 0:04:30.9]} 17. O-O-O+ {[%clk 0:04:14.8]}
17... Kc6 {[%clk 0:04:07.7]} 18. Bxf8 {[%clk 0:04:12.2]} 18... Rhxf8 {[%clk
0:04:07.6]} 19. Rd4 {[%clk 0:04:10]} 19... Rfd8 {[%clk 0:03:48.8]} 20. Rhd1
{[%clk 0:04:07]} 20... Rd5 {[%clk 0:03:39.7]} 21. Rc4+ {[%clk 0:03:49.1]} 21...
Kd6 {[%clk 0:03:24.8]} 22. Rh4 {[%clk 0:03:38.5]} 22... Rxd1+ {[%clk 0:02:43.2]}
23. Kxd1 {[%clk 0:03:36.6]} 23... h6 {[%clk 0:02:40.4]} 24. Rd4+ {[%clk
0:03:19.5]} 24... Ke7 {[%clk 0:02:39.2]} 25. Ra4 {[%clk 0:03:17.2]} 25... a5
{[%clk 0:02:22.3]} 26. Kc2 {[%clk 0:03:11.6]} 26... Kd6 {[%clk 0:02:16.5]} 27.
Kd3 {[%clk 0:03:09.4]} 27... Ra7 {[%clk 0:02:07.5]} 28. f4 {[%clk 0:03:00]}
28... f6 {[%clk 0:01:36.2]} 29. Kd4 {[%clk 0:02:26.1]} 29... g5 {[%clk
0:01:26.8]} 30. fxg5 {[%clk 0:02:23.7]} 30... hxg5 {[%clk 0:01:21.6]} 31. c4
{[%clk 0:02:01.4]} 31... Rh7 {[%clk 0:01:19.1]} 32. c5+ {[%clk 0:01:53.4]} 32...
Kc6 {[%clk 0:01:06.6]} 33. Rxa5 {[%clk 0:01:52.1]} 33... e5+ {[%clk 0:00:53.8]}
34. Ke3 {[%clk 0:01:36.6]} 34... Rxh2 {[%clk 0:00:50.3]} 35. Ra6+ {[%clk
0:01:33.9]} 35... Kxc5 {[%clk 0:00:49.6]} 36. Rxf6 {[%clk 0:01:32.7]} 36... Kd5
{[%clk 0:00:40.8]} 37. a4 {[%clk 0:01:23]} 37... Rh7 {[%clk 0:00:38.3]} 38. a5
{[%clk 0:01:19.2]} 38... Rg7 {[%clk 0:00:30.2]} 39. a6 {[%clk 0:01:11]} 39... g4
{[%clk 0:00:29.1]} 40. Rb6 {[%clk 0:00:28]} 40... Ra7 {[%clk 0:00:27.3]} 41. Rg6
{[%clk 0:00:23.9]} 41... Kc4 {[%clk 0:00:20.3]} 42. Ke4 {[%clk 0:00:21.8]} 42...
Kc3 {[%clk 0:00:18.4]} 43. Kxe5 {[%clk 0:00:20.6]} 43... Kd2 {[%clk 0:00:18.1]}
44. Kd5 {[%clk 0:00:19.5]} 44... Ke2 {[%clk 0:00:17.6]} 45. Rf6 {[%clk
0:00:18.4]} 45... Rg7 {[%clk 0:00:15.1]} 46. Kc5 {[%clk 0:00:16.6]} 46... g3
{[%clk 0:00:14.2]} 47. fxg3 {[%clk 0:00:14.5]} 47... Rxg3 {[%clk 0:00:13.6]} 48.
a7 {[%clk 0:00:13.2]} 48... Ra3 {[%clk 0:00:12.4]} 49. Kb6 {[%clk 0:00:11.1]}
49... Ke3 {[%clk 0:00:12.3]} 50. Rc6 {[%clk 0:00:08.7]} 50... Ke4 {[%clk
0:00:11.6]} 51. Kb7 {[%clk 0:00:07.8]} 51... Rb3+ {[%clk 0:00:10.7]} 52. Kc8
{[%clk 0:00:06.4]} 52... Rd3 {[%clk 0:00:10.4]} 53. a8=Q {[%clk 0:00:03.5]}
53... Kd5 {[%clk 0:00:10.3]} 54. Rc3+ {[%clk 0:00:00.6]} 54... Kd4 {[%clk
0:00:09.8]} 0-1

[Event "Live Chess"]
[Site "Chess.com"]
[Date "2023.05.20"]
[Round "-"]
[White "amazinggoalkeeper"]
[Black "BearFromUkraine"]
[Result "0-1"]
[WhiteElo "499"]
[BlackElo "1190"]
[TimeControl "300"]
[EndTime "9:27:24 PDT"]
[Termination "BearFromUkraine won by resignation"]

1. e4 {[%clk 0:04:53.6]} 1... e5 {[%clk 0:04:58.9]} 2. Nf3 {[%clk 0:04:52.1]}
2... Nc6 {[%clk 0:04:58]} 3. Bc4 {[%clk 0:04:49.4]} 3... Bc5 {[%clk 0:04:56.5]}
4. Nc3 {[%clk 0:04:47.4]} 4... Nf6 {[%clk 0:04:54.1]} 5. O-O {[%clk 0:04:44.5]}
5... O-O {[%clk 0:04:52.7]} 6. Bb3 {[%clk 0:04:30.6]} 6... d6 {[%clk 0:04:48.1]}
7. Re1 {[%clk 0:04:26.3]} 7... Bg4 {[%clk 0:04:45.7]} 8. Nd5 {[%clk 0:04:19.3]}
8... Nd4 {[%clk 0:04:40.7]} 9. Nxf6+ {[%clk 0:04:16.8]} 9... Qxf6 {[%clk
0:04:39]} 10. Re3 {[%clk 0:04:12.7]} 10... Nxf3+ {[%clk 0:04:33.3]} 11. Rxf3
{[%clk 0:04:10.8]} 11... Bxf3 {[%clk 0:04:29.5]} 12. Qxf3 {[%clk 0:04:10.6]}
12... Qxf3 {[%clk 0:04:28]} 13. gxf3 {[%clk 0:04:09.5]} 13... Kh8 {[%clk
0:04:19.7]} 14. c3 {[%clk 0:04:02.3]} 14... f5 {[%clk 0:04:18.2]} 15. d3 {[%clk
0:03:56.8]} 15... fxe4 {[%clk 0:04:14.7]} 16. dxe4 {[%clk 0:03:53.9]} 16... Rxf3
{[%clk 0:04:10.3]} 17. Be3 {[%clk 0:03:51.2]} 17... Bxe3 {[%clk 0:04:05.5]} 18.
fxe3 {[%clk 0:03:49]} 18... Rxe3 {[%clk 0:04:03.8]} 19. Bd5 {[%clk 0:03:46.1]}
19... c6 {[%clk 0:04:00.3]} 20. Be6 {[%clk 0:03:41.9]} 0-1